[Event "POR-ch Amateur 2018"]
[Site "Braga"]
[Date "2018.09.07"]
[Round "2"]
[White "Pinto, Andre Filipe Silva"]
[Black "Pedroso, Manuel"]
[Result "1-0"]
[ECO "B01"]
[WhiteElo "2002"]
[BlackElo "1306"]
[PlyCount "93"]
[EventDate "2018.09.02"]
[EventType "tourn"]
[EventCountry "POR"]
[TimeControl "40/5400+30:1800+30"]

1. e4 d5 2. exd5 Qxd5 3. Nc3 Qa5 4. Bc4 Nf6 5. d3 c6 6. Bd2 Qd8 7. Nf3 Bg4 8. Bxf7+ Kxf7 9. Ne5+ Kg8 10. Nxg4 Nbd7 11. Qe2 Qe8 12. Qe6+ Qf7 13. Nxf6+ exf6 14. Qxf7+ Kxf7 15. O-O-O Bc5 16. Ne4 a5 17. Nxc5 Nxc5 18. Rhe1 b5 19. Re2 Ne6 20. Rde1 Rhe8 21. f4 f5 22. h3 b4 23. g4 g6 24. Re5 Rad8 25. gxf5 gxf5 26. Rxf5+ Kg6 27. Rxa5 Nd4 28. Bxb4 Rxe1+ 29. Bxe1 Re8 30. Re5 Rxe5 31. fxe5 Nf3 32. Bg3 h5 33. h4 Kf5 34. c3 Nxe5 35. Bxe5 Kxe5 36. a4 Kf4 37. a5 Kg4 38. a6 Kxh4 39. a7 Kg3 40. a8=Q h4 41. Qxc6 h3 42. b4 h2 43. b5 Kf2 44. b6 Kg1 45. b7 h1=Q 46. Qxh1+ Kxh1 47. b8=Q 1-0

[Event "POR-ch Amateur 2018"]
[Site "Braga"]
[Date "2018.09.07"]
[Round "2"]
[White "Godinho Marques, Pedro"]
[Black "Ribeiro, Rodrigo"]
[Result "0-1"]
[ECO "D00"]
[WhiteElo "1853"]
[BlackElo "1696"]
[PlyCount "102"]
[EventDate "2018.09.02"]
[EventType "tourn"]
[EventCountry "POR"]
[TimeControl "40/5400+30:1800+30"]
[WhiteClock "0:54:31"]
[BlackClock "0:01:00"]

1. d4 {[%emt 0:00:00]} d5 {[%emt 0:00:00]} 2. Bf4 {[%emt 0:00:26]} Bf5 {[%emt 0:00:12]} 3. e3 {[%emt 0:01:16]} Nf6 {[%emt 0:00:45]} 4. Bd3 {[%emt 0:03:16]} Bg6 {[%emt 0:02:17]} 5. Nf3 {[%emt 0:07:11]} e6 {[%emt 0:00:41]} 6. Ne5 {[%emt 0:02:01]} Bd6 {[%emt 0:01:18]} 7. h4 {[%emt 0:05:38]} a6 {[%emt 0:06:00]} 8. h5 {[%emt 0:01:59]} Bxd3 {[%emt 0:05:19]} 9. Qxd3 {[%emt 0:00:57]} Nc6 {[%emt 0:00:30]} 10. Nd2 {[%emt 0:10:56]} Bxe5 {[%emt 0:03:01]} 11. dxe5 {[%emt 0:01:33]} Nd7 {[%emt 0:00:15]} 12. Nf3 {[%emt 0:01:31]} Qe7 {[%emt 0:00:56]} 13. O-O-O {[%emt 0:06:28]} Qb4 {[%emt 0:06:06]} 14. a3 {[%emt 0:09:55]} Qa4 {[%emt 0:04:37]} 15. Qc3 {[%emt 0:02:22]} Qb5 {[%emt 0:03:45]} 16. Nd4 {[%emt 0:06:02]} Qa5 {[%emt 0:01:57]} 17. b4 {[%emt 0:08:26]} Qb6 {[%emt 0:01:25]} 18. Nxc6 {[%emt 0:05:18]} Qxc6 {[%emt 0:00:20]} 19. Qxc6 {[%emt 0:02:19]} bxc6 {[%emt 0:00:05]} 20. e4 {[%emt 0:00:19]} O-O {[%emt 0:00:27]} 21. exd5 {[%emt 0:06:16]} cxd5 {[%emt 0:01:06]} 22. c4 {[%emt 0:03:03]} c6 {[%emt 0:00:35]} 23. Rhe1 {[%emt 0:02:31]} Nb6 {[%emt 0:00:22]} 24. cxd5 {[%emt 0:01:23]} cxd5 {[%emt 0:00:05]} 25. Kb2 {[%emt 0:02:46]} a5 {[%emt 0:00:37]} 26. bxa5 {[%emt 0:01:54]} Rxa5 {[%emt 0:00:05]} 27. Rd3 {[%emt 0:00:45]} Rb8 {[%emt 0:01:18]} 28. Ka2 {[%emt 0:03:03]} Nc4 {[%emt 0:00:36]} 29. Re2 {[%emt 0:00:20]} Rab5 {[%emt 0:00:41]} 30. Bc1 {[%emt 0:00:53]} Rb1 {[%emt 0:00:41]} 31. Rc3 {[%emt 0:01:06]} R1b6 {[%emt 0:01:24]} 32. f4 {[%emt 0:00:18]} Rc6 {[%emt 0:00:11]} 33. g4 {[%emt 0:00:29]} Nxe5 {[%emt 0:00:41]} 34. Rxc6 {[%emt 0:00:59]} Nxc6 {[%emt 0:00:02]} 35. h6 {[%emt 0:01:43]} g6 {[%emt 0:00:22]} 36. Bb2 {[%emt 0:00:48]} Ne7 {[%emt 0:01:17]} 37. Be5 {[%emt 0:00:17]} Rc8 {[%emt 0:00:59]} 38. Rb2 {[%emt 0:00:07]} Kf8 {[%emt 0:00:52]} 39. Rb7 {[%emt 0:00:35]} Ke8 {[%emt 0:00:08]} 40. a4 {[%emt 0:00:53]} Nc6 {[%emt 0:00:25]} 41. Bc7 {[%emt 0:31:13]} Ra8 {[%emt 0:32:51]} 42. Ka3 {[%emt 0:00:24]} Nd8 {[%emt 0:00:37]} 43. Rb5 {[%emt 0:00:23]} Rc8 {[%emt 0:00:32]} 44. Be5 {[%emt 0:00:21]} Nc6 {[%emt 0:01:36]} 45. Bf6 {[%emt 0:00:50]} Rb8 {[%emt 0:00:52]} 46. Rc5 {[%emt 0:00:35]} Kd7 {[%emt 0:00:12]} 47. a5 {[%emt 0:00:14]} Rb1 {[%emt 0:00:34]} 48. a6 {[%emt 0:00:16]} Rb6 {[%emt 0:00:34]} 49. Bc3 {[%emt 0:01:41]} Rxa6+ {[%emt 0:00:09]} 50. Kb3 {[%emt 0:00:23]} Rb6+ {[%emt 0:00:25]} 51. Kc2 {[%emt 0:00:08]} Kd6 {[%emt 0:00:14]} 0-1

[Event "POR-ch Amateur 2018"]
[Site "Braga"]
[Date "2018.09.07"]
[Round "2"]
[White "Demyanchuk, Sergey"]
[Black "Monteiro, Jose Macedo"]
[Result "1-0"]
[ECO "B07"]
[WhiteElo "1818"]
[BlackElo "1889"]
[PlyCount "67"]
[EventDate "2018.09.02"]
[EventType "tourn"]
[EventCountry "POR"]
[TimeControl "40/5400+30:1800+30"]
[WhiteClock "0:36:44"]
[BlackClock "1:03:47"]

1. e4 {[%emt 0:04:15]} d6 {[%emt 0:00:00]} 2. d4 {[%emt 0:00:09]} Nf6 {[%emt 0:00:00]} 3. Nc3 {[%emt 0:00:07]} g6 {[%emt 0:00:00]} 4. Be2 {[%emt 0:01:05]} Bg7 {[%emt 0:06:42]} 5. Be3 {[%emt 0:00:26]} c6 {[%emt 0:01:15]} 6. Qd2 {[%emt 0:00:27]} h6 {[%emt 0:00:22]} 7. h3 {[%emt 0:00:40]} Qa5 {[%emt 0:00:12]} 8. Nf3 {[%emt 0:00:57]} b5 {[%emt 0:00:22]} 9. e5 {[%emt 0:00:54]} b4 {[%emt 0:02:03]} 10. exf6 {[%emt 0:00:22]} bxc3 {[%emt 0:00:07]} 11. bxc3 {[%emt 0:00:38]} Bxf6 {[%emt 0:00:20]} 12. O-O {[%emt 0:00:20]} Bg7 {[%emt 0:00:07]} 13. Rfe1 {[%emt 0:02:39]} Nd7 {[%emt 0:03:34]} 14. Bd3 {[%emt 0:01:07]} e5 {[%emt 0:02:36]} 15. dxe5 {[%emt 0:00:42]} dxe5 {[%emt 0:00:03]} 16. Be4 {[%emt 0:04:36]} Qc7 {[%emt 0:02:30]} 17. Rad1 {[%emt 0:05:27]} f5 {[%emt 0:13:11]} 18. Bd3 {[%emt 0:00:29]} Bb7 {[%emt 0:13:05]} 19. Nh4 {[%emt 0:01:40]} Qd6 {[%emt 0:00:54]} 20. Bxf5 {[%emt 0:00:47]} Qxd2 {[%emt 0:00:20]} 21. Bxg6+ {[%emt 0:00:10]} Kd8 {[%emt 0:02:00]} 22. Rxd2 {[%emt 0:00:10]} Kc7 {[%emt 0:00:34]} 23. Nf5 {[%emt 0:00:58]} Bf8 {[%emt 0:00:45]} 24. Red1 {[%emt 0:00:38]} Nf6 {[%emt 0:01:21]} 25. c4 {[%emt 0:02:24]} c5 {[%emt 0:00:33]} 26. Nd6 {[%emt 0:00:48]} Bxg2 {[%emt 0:03:22]} 27. Kxg2 {[%emt 0:01:43]} Rg8 {[%emt 0:00:20]} 28. Bxc5 {[%emt 0:04:50]} Rxg6+ {[%emt 0:02:24]} 29. Kf1 {[%emt 0:00:16]} Kc6 {[%emt 0:00:28]} 30. Be3 {[%emt 0:01:11]} a6 {[%emt 0:06:01]} 31. Nf7 {[%emt 0:00:31]} Re8 {[%emt 0:00:38]} 32. Rd8 {[%emt 0:01:13]} Bb4 {[%emt 0:03:35]} 33. Rxe8 {[%emt 0:00:22]} Nxe8 {[%emt 0:00:02]} 34. Nxe5+ {[%emt 0:00:12]} 1-0

[Event "POR-ch Amateur 2018"]
[Site "Braga"]
[Date "2018.09.07"]
[Round "2"]
[White "Andrade, Ricardo Sarmento"]
[Black "Santos, Jose Miguel Sereno"]
[Result "1-0"]
[ECO "A12"]
[WhiteElo "1744"]
[BlackElo "1706"]
[PlyCount "109"]
[EventDate "2018.09.02"]
[EventType "tourn"]
[EventCountry "POR"]
[TimeControl "40/5400+30:1800+30"]

1. Nf3 d5 2. c4 c6 3. b3 Bf5 4. g3 Nf6 5. Bg2 e6 6. O-O Nbd7 7. Bb2 Be7 8. d3 O-O 9. Nbd2 Rc8 10. a3 a5 11. Rc1 b5 12. cxb5 cxb5 13. Rxc8 Qxc8 14. Nd4 Qb7 15. Nxf5 exf5 16. Qa1 Re8 17. e4 fxe4 18. dxe4 Bf8 19. exd5 Nxd5 20. Rd1 N7b6 21. Nf1 Rd8 22. Bd4 Qe7 23. Ne3 Nxe3 24. Bxe3 Rxd1+ 25. Qxd1 Nc8 26. a4 bxa4 27. bxa4 Qd6 28. Qc2 Nb6 29. Be4 g6 30. Qc6 Qxc6 31. Bxc6 Nc4 32. Ba7 Bb4 33. Kf1 Kf8 34. Ke2 Ke7 35. Bd4 f6 36. f4 Ke6 37. Kd3 Nd6 38. Bc3 g5 39. Bxb4 axb4 40. fxg5 fxg5 41. a5 b3 42. a6 b2 43. Kc2 Nc8 44. Kxb2 Kd6 45. Bb7 Na7 46. Kc3 Kc5 47. g4 Kb6 48. Kd4 Nb5+ 49. Ke5 Nc3 50. Kf6 Nd1 51. Kxg5 Nf2 52. Bc8 Nh3+ 53. Kh6 Ka7 54. Kxh7 Kb8 55. Bb7 1-0

[Event "POR-ch Amateur 2018"]
[Site "Braga"]
[Date "2018.09.07"]
[Round "2"]
[White "Machado, Tiago Candido Leita"]
[Black "Fonseca, Pedro Miguel Ramos"]
[Result "1/2-1/2"]
[ECO "C50"]
[WhiteElo "1473"]
[BlackElo "1393"]
[PlyCount "129"]
[EventDate "2018.09.02"]
[EventType "tourn"]
[EventCountry "POR"]
[TimeControl "40/5400+30:1800+30"]
[WhiteClock "0:06:15"]
[BlackClock "0:03:50"]

1. e4 {[%emt 0:00:00]} e5 {[%emt 0:00:00]} 2. Nf3 {[%emt 0:00:00]} Nc6 {[%emt 0:00:00]} 3. Bc4 {[%emt 0:00:00]} Bc5 {[%emt 0:00:00]} 4. d3 {[%emt 0:00:30]} Nf6 {[%emt 0:00:00]} 5. Bg5 {[%emt 0:00:47]} d6 {[%emt 0:01:04]} 6. h3 {[%emt 0:00:41]} a6 {[%emt 0:01:52]} 7. Nc3 {[%emt 0:03:28]} Na5 {[%emt 0:03:34]} 8. Bb3 {[%emt 0:01:02]} Nxb3 {[%emt 0:02:27]} 9. axb3 {[%emt 0:00:02]} c6 {[%emt 0:01:53]} 10. O-O {[%emt 0:02:34]} O-O {[%emt 0:04:00]} 11. Ne2 {[%emt 0:05:50]} h6 {[%emt 0:02:12]} 12. Bh4 {[%emt 0:01:45]} Re8 {[%emt 0:03:03]} 13. Ng3 {[%emt 0:05:14]} g5 {[%emt 0:06:32]} 14. Nxg5 {[%emt 0:00:08]} hxg5 {[%emt 0:00:09]} 15. Bxg5 {[%emt 0:00:06]} d5 {[%emt 0:04:43]} 16. d4 {[%emt 0:10:23]} exd4 {[%emt 0:15:10]} 17. Qf3 {[%emt 0:18:33]} Be7 18. e5 {[%emt 0:15:35]} Nh7 {[%emt 0:12:33]} 19. Bxe7 {[%emt 0:01:39]} Qxe7 {[%emt 0:00:28]} 20. Rae1 {[%emt 0:04:04]} Qg5 {[%emt 0:04:46]} 21. h4 {[%emt 0:06:52]} Qxh4 {[%emt 0:04:57]} 22. Qd3 {[%emt 0:02:28]} Re6 {[%emt 0:08:48]} 23. f4 {[%emt 0:05:15]} Rg6 {[%emt 0:04:51]} 24. Rf3 {[%emt 0:00:39]} Bg4 {[%emt 0:01:16]} 25. f5 {[%emt 0:03:29]} Bxf3 {[%emt 0:01:59]} 26. fxg6 {[%emt 0:00:47]} Qxg3 {[%emt 0:02:25]} 27. gxh7+ {[%emt 0:01:29]} Kh8 {[%emt 0:01:17]} 28. Re2 {[%emt 0:00:00]} Qg4 {[%emt 0:02:46]} 29. Qxf3 {[%emt 0:00:43]} Qxf3 {[%emt 0:00:11]} 30. gxf3 {[%emt 0:00:10]} Kxh7 {[%emt 0:00:16]} 31. b4 {[%emt 0:02:20]} Kg6 {[%emt 0:01:25]} 32. Rd2 {[%emt 0:07:15]} Kf5 {[%emt 0:00:37]} 33. Rxd4 {[%emt 0:00:06]} Kxe5 {[%emt 0:00:14]} 34. Rd3 {[%emt 0:00:12]} Kf4 {[%emt 0:01:26]} 35. Kf2 {[%emt 0:00:11]} Rh8 {[%emt 0:00:39]} 36. Kg2 {[%emt 0:00:49]} Rh6 {[%emt 0:00:57]} 37. c3 {[%emt 0:00:39]} Re6 {[%emt 0:01:34]} 38. Kf2 {[%emt 0:00:34]} Ke5 {[%emt 0:01:05]} 39. Kg3 {[%emt 0:00:47]} Kd6 {[%emt 0:00:30]} 40. Kf2 {[%emt 0:00:50]} Kc7 {[%emt 0:00:37]} 41. Kg3 {[%emt 0:30:51]} Re2 {[%emt 0:30:21]} 42. Kf4 {[%emt 0:01:20]} Kd6 {[%emt 0:02:28]} 43. Kf5 {[%emt 0:00:48]} Ke7 {[%emt 0:00:22]} 44. b3 {[%emt 0:00:13]} Rb2 {[%emt 0:00:25]} 45. Re3+ {[%emt 0:00:10]} Kf8 {[%emt 0:00:44]} 46. Kf6 {[%emt 0:00:24]} Rxb3 {[%emt 0:01:02]} 47. f4 {[%emt 0:00:41]} Rb2 {[%emt 0:01:49]} 48. Re7 {[%emt 0:00:12]} Rf2 {[%emt 0:00:38]} 49. Rxf7+ {[%emt 0:00:29]} Ke8 {[%emt 0:00:23]} 50. Rxb7 {[%emt 0:00:15]} Rxf4+ {[%emt 0:00:09]} 51. Ke6 {[%emt 0:00:17]} Re4+ {[%emt 0:00:16]} 52. Kd6 {[%emt 0:00:09]} Rc4 {[%emt 0:00:20]} 53. Ke6 {[%emt 0:01:37]} Kd8 {[%emt 0:00:16]} 54. Kd6 {[%emt 0:00:18]} Ke8 {[%emt 0:00:23]} 55. Ke6 {[%emt 0:00:01]} Kf8 {[%emt 0:00:34]} 56. Kf6 {[%emt 0:00:01]} Rf4+ {[%emt 0:00:22]} 57. Ke5 {[%emt 0:00:46]} Rc4 {[%emt 0:00:27]} 58. Kf6 {[%emt 0:00:05]} Kg8 {[%emt 0:00:18]} 59. Kg6 {[%emt 0:00:10]} Rg4+ {[%emt 0:00:20]} 60. Kf5 {[%emt 0:00:14]} Rg3 {[%emt 0:00:14]} 61. Rb6 {[%emt 0:00:44]} Rxc3 {[%emt 0:00:19]} 62. Rxa6 {[%emt 0:00:15]} d4 {[%emt 0:00:33]} 63. Ke4 {[%emt 0:00:22]} Rc4 {[%emt 0:00:32]} 64. Kd3 {[%emt 0:00:12]} Rxb4 {[%emt 0:00:14]} 65. Rxc6 {[%emt 0:00:10]} 1/2-1/2

[Event "POR-ch Amateur 2018"]
[Site "Braga"]
[Date "2018.09.07"]
[Round "2"]
[White "Mendes, Bruno Daniel"]
[Black "Da Silva, Pedro Vieira Prado"]
[Result "0-1"]
[ECO "B74"]
[WhiteElo "1432"]
[BlackElo "1521"]
[PlyCount "168"]
[EventDate "2018.09.02"]
[EventType "tourn"]
[EventCountry "POR"]
[TimeControl "40/5400+30:1800+30"]
[WhiteClock "0:04:16"]
[BlackClock "0:04:43"]

1. e4 {[%emt 0:00:00]} c5 {[%emt 0:00:00]} 2. Nf3 {[%emt 0:00:00]} Nc6 {[%emt 0:00:00]} 3. d4 {[%emt 0:00:00]} cxd4 {[%emt 0:00:00]} 4. Nxd4 {[%emt 0:00:00]} Nf6 {[%emt 0:00:00]} 5. Nc3 {[%emt 0:00:21]} g6 {[%emt 0:00:00]} 6. Be3 {[%emt 0:00:15]} Bg7 {[%emt 0:00:00]} 7. Nb3 {[%emt 0:00:51]} O-O {[%emt 0:00:00]} 8. Be2 {[%emt 0:00:13]} d6 {[%emt 0:00:16]} 9. O-O {[%emt 0:00:28]} Be6 {[%emt 0:02:21]} 10. f4 {[%emt 0:01:19]} a5 {[%emt 0:02:37]} 11. f5 {[%emt 0:03:42]} Bd7 {[%emt 0:02:23]} 12. a4 {[%emt 0:02:56]} Rc8 {[%emt 0:03:01]} 13. g4 {[%emt 0:03:15]} Nb4 {[%emt 0:05:56]} 14. Bd4 {[%emt 0:23:11]} h6 {[%emt 0:09:10]} 15. h4 {[%emt 0:09:14]} Bc6 {[%emt 0:07:23]} 16. Bf3 {[%emt 0:03:26]} Qc7 {[%emt 0:10:19]} 17. Qe2 Rfe8 {[%emt 0:14:04]} 18. Qf2 {[%emt 0:23:05]} Rf8 {[%emt 0:14:21]} 19. Bb6 {[%emt 0:04:15]} Qb8 {[%emt 0:04:25]} 20. Bxa5 {[%emt 0:01:46]} Na6 {[%emt 0:01:05]} 21. Rab1 {[%emt 0:05:45]} Nd7 {[%emt 0:02:30]} 22. Nd5 {[%emt 0:04:24]} Rfe8 {[%emt 0:04:03]} 23. Nb6 {[%emt 0:01:16]} Nxb6 {[%emt 0:00:38]} 24. Bxb6 {[%emt 0:00:05]} Bxa4 {[%emt 0:00:37]} 25. Bd4 {[%emt 0:06:12]} Qc7 {[%emt 0:04:17]} 26. Bxg7 {[%emt 0:01:12]} Bxb3 {[%emt 0:00:31]} 27. Bxh6 {[%emt 0:01:02]} Qxc2 {[%emt 0:00:55]} 28. Qd4 {[%emt 0:01:18]} Qc5 {[%emt 0:00:43]} 29. Be3 {[%emt 0:00:58]} Qxd4 {[%emt 0:01:15]} 30. Bxd4 {[%emt 0:00:08]} Nc5 {[%emt 0:02:02]} 31. Bxc5 {[%emt 0:01:43]} Rxc5 {[%emt 0:00:12]} 32. Rbc1 {[%emt 0:01:09]} Rec8 {[%emt 0:00:15]} 33. Rxc5 {[%emt 0:00:13]} Rxc5 {[%emt 0:00:01]} 34. Kg2 {[%emt 0:00:34]} Rc2+ {[%emt 0:01:50]} 35. Rf2 {[%emt 0:00:07]} Kg7 {[%emt 0:01:36]} 36. Rxc2 {[%emt 0:00:30]} Bxc2 {[%emt 0:00:01]} 37. Kg3 {[%emt 0:00:28]} b6 {[%emt 0:01:02]} 38. Kf4 {[%emt 0:00:28]} gxf5 {[%emt 0:00:38]} 39. exf5 {[%emt 0:00:14]} f6 {[%emt 0:00:44]} 40. Ke3 {[%emt 0:01:00]} Kh6 {[%emt 0:01:46]} 41. Kd4 {[%emt 0:30:13]} Bb3 {[%emt 0:30:12]} 42. Kc3 {[%emt 0:00:29]} Bf7 {[%emt 0:00:38]} 43. Kb4 {[%emt 0:01:13]} Be8 {[%emt 0:00:03]} 44. Kc4 {[%emt 0:00:37]} Kg7 {[%emt 0:00:50]} 45. b4 {[%emt 0:00:16]} b5+ {[%emt 0:00:43]} 46. Kd5 {[%emt 0:00:09]} Bd7 {[%emt 0:00:06]} 47. Be2 {[%emt 0:01:15]} Kh6 {[%emt 0:00:38]} 48. Bd1 {[%emt 0:00:24]} Kg7 {[%emt 0:00:12]} 49. Bb3 {[%emt 0:00:13]} Kh6 {[%emt 0:00:37]} 50. Ke4 {[%emt 0:00:08]} Bc6+ {[%emt 0:01:08]} 51. Bd5 {[%emt 0:00:11]} Be8 {[%emt 0:00:20]} 52. Ba8 {[%emt 0:00:26]} Bf7 {[%emt 0:02:27]} 53. Bd5 {[%emt 0:01:13]} Be8 {[%emt 0:00:23]} 54. Kf4 {[%emt 0:00:19]} Kh7 {[%emt 0:01:12]} 55. g5 {[%emt 0:00:08]} Kg7 {[%emt 0:00:10]} 56. g6 {[%emt 0:00:27]} Bd7 {[%emt 0:00:39]} 57. h5 {[%emt 0:00:41]} Be8 {[%emt 0:00:26]} 58. Ke4 {[%emt 0:00:40]} Kh6 {[%emt 0:00:42]} 59. Kf4 {[%emt 0:00:50]} Kg7 {[%emt 0:00:19]} 60. Be6 {[%emt 0:00:23]} Kh6 {[%emt 0:00:30]} 61. Ke4 {[%emt 0:00:21]} Kg7 {[%emt 0:00:08]} 62. Kd5 {[%emt 0:00:24]} Kh6 {[%emt 0:00:21]} 63. Bf7 {[%emt 0:00:50]} Bd7 {[%emt 0:00:11]} 64. Be6 {[%emt 0:00:30]} Be8 {[%emt 0:00:01]} 65. Bf7 {[%emt 0:02:09]} Bd7 {[%emt 0:00:02]} 66. Be8 {[%emt 0:00:33]} Bxe8 {[%emt 0:03:58]} 67. Ke6 {[%emt 0:00:30]} Bd7+ 68. Kd5 Be8 {[%emt 0:01:00]} 69. Ke6 {[%emt 0:00:35]} Kg7 {[%emt 0:00:47]} 70. Kxe7 {[%emt 0:00:16]} Bxg6 {[%emt 0:01:17]} 71. fxg6 {[%emt 0:00:25]} d5 {[%emt 0:00:08]} 72. h6+ {[%emt 0:00:06]} Kxg6 {[%emt 0:00:08]} 73. h7 {[%emt 0:01:25]} Kxh7 {[%emt 0:00:05]} 74. Kxf6 {[%emt 0:00:04]} d4 {[%emt 0:00:04]} 75. Ke5 {[%emt 0:00:05]} d3 {[%emt 0:00:04]} 76. Kd4 {[%emt 0:00:11]} d2 {[%emt 0:00:04]} 77. Kc5 {[%emt 0:00:03]} d1=Q {[%emt 0:00:06]} 78. Kxb5 {[%emt 0:00:04]} Kg6 {[%emt 0:00:35]} 79. Kc6 {[%emt 0:00:13]} Qc2+ {[%emt 0:01:30]} 80. Kd5 {[%emt 0:00:26]} Qc7 {[%emt 0:00:23]} 81. b5 {[%emt 0:00:13]} Kf5 {[%emt 0:00:12]} 82. Kd4 {[%emt 0:00:13]} Qb6+ {[%emt 0:00:45]} 83. Kc4 {[%emt 0:00:10]} Ke4 {[%emt 0:00:13]} 84. Kb4 {[%emt 0:00:13]} Kd4 0-1

[Event "POR-ch Amateur 2018"]
[Site "Braga"]
[Date "2018.09.07"]
[Round "2"]
[White "Ribeiro, Gustavo"]
[Black "Barroso, Simao Oliveira Alvi"]
[Result "1-0"]
[ECO "B10"]
[WhiteElo "1414"]
[BlackElo "1570"]
[PlyCount "41"]
[EventDate "2018.09.02"]
[EventType "tourn"]
[EventCountry "POR"]
[TimeControl "40/5400+30:1800+30"]

1. e4 c6 2. c4 d5 3. cxd5 cxd5 4. exd5 Nf6 5. Bc4 Nbd7 6. Qa4 g6 7. Nf3 Bg7 8. O-O O-O 9. Nc3 Nb6 10. Qb3 Bg4 11. Ne5 Qd6 12. d4 Rfc8 13. g3 Bh3 14. Re1 Ng4 15. Ne4 Qc7 16. d6 exd6 17. Bxf7+ Kf8 18. Nxg4 Bxg4 19. Ng5 Nc4 20. Be6 Na5 21. Nxh7+ 1-0

[Event "POR-ch Amateur 2018"]
[Site "Braga"]
[Date "2018.09.07"]
[Round "2"]
[White "Lomba, Lucas"]
[Black "Carvalho, Vitor Hugo Pina Soa"]
[Result "1-0"]
[ECO "B08"]
[WhiteElo "1383"]
[BlackElo "1884"]
[PlyCount "85"]
[EventDate "2018.09.02"]
[EventType "tourn"]
[EventCountry "POR"]
[TimeControl "40/5400+30:1800+30"]
[WhiteClock "0:00:58"]
[BlackClock "0:20:49"]

1. e4 {[%emt 0:00:00]} d6 {[%emt 0:00:41]} 2. d4 {[%emt 0:00:02]} Nf6 {[%emt 0:00:34]} 3. Nc3 {[%emt 0:00:21]} g6 {[%emt 0:00:25]} 4. Nf3 {[%emt 0:00:51]} Bg7 {[%emt 0:00:19]} 5. Be2 {[%emt 0:00:46]} O-O {[%emt 0:00:49]} 6. O-O {[%emt 0:00:55]} a6 {[%emt 0:02:47]} 7. Bg5 {[%emt 0:04:19]} b6 {[%emt 0:02:45]} 8. e5 {[%emt 0:00:49]} Nfd7 {[%emt 0:05:43]} 9. exd6 {[%emt 0:07:48]} cxd6 {[%emt 0:00:33]} 10. Qd2 {[%emt 0:00:46]} Re8 {[%emt 0:02:54]} 11. Bc4 {[%emt 0:01:11]} Qc7 {[%emt 0:03:55]} 12. Bb3 {[%emt 0:03:00]} e6 {[%emt 0:02:01]} 13. Qf4 {[%emt 0:05:19]} Bb7 {[%emt 0:07:02]} 14. Rfe1 {[%emt 0:03:45]} Bxf3 {[%emt 0:06:19]} 15. Qxf3 {[%emt 0:00:18]} Nc6 {[%emt 0:03:23]} 16. Nd5 {[%emt 0:09:03]} Qc8 {[%emt 0:17:02]} 17. Nf6+ {[%emt 0:03:06]} Nxf6 18. Bxf6 {[%emt 0:00:30]} Nxd4 19. Bxd4 Bxd4 20. Rad1 {[%emt 0:07:06]} Bc5 {[%emt 0:14:50]} 21. h4 {[%emt 0:03:19]} Qd8 {[%emt 0:17:06]} 22. Re4 {[%emt 0:02:28]} Kg7 {[%emt 0:02:18]} 23. h5 {[%emt 0:03:01]} d5 {[%emt 0:03:15]} 24. Rf4 {[%emt 0:05:17]} Ra7 {[%emt 0:01:26]} 25. hxg6 {[%emt 0:01:29]} hxg6 {[%emt 0:01:19]} 26. g3 {[%emt 0:01:41]} Rh8 {[%emt 0:01:28]} 27. Kg2 {[%emt 0:01:25]} Bd6 {[%emt 0:00:53]} 28. Qc3+ {[%emt 0:02:23]} f6 {[%emt 0:00:42]} 29. Rf3 {[%emt 0:03:16]} Be5 {[%emt 0:00:54]} 30. Qe3 {[%emt 0:00:15]} Qd6 {[%emt 0:00:53]} 31. c3 {[%emt 0:01:05]} Kg8 {[%emt 0:00:49]} 32. Rh1 {[%emt 0:02:45]} Rah7 {[%emt 0:00:12]} 33. Rxh7 {[%emt 0:00:15]} Rxh7 {[%emt 0:00:09]} 34. Bc2 {[%emt 0:00:19]} Kg7 {[%emt 0:01:15]} 35. Qd3 {[%emt 0:00:44]} f5 {[%emt 0:01:21]} 36. Qxa6 {[%emt 0:00:40]} Kf6 {[%emt 0:00:21]} 37. Qc8 {[%emt 0:02:10]} Qe7 {[%emt 0:00:57]} 38. Re3 {[%emt 0:02:57]} Bd6 {[%emt 0:00:15]} 39. Bb3 {[%emt 0:00:52]} Qd7 {[%emt 0:01:01]} 40. Qg8 {[%emt 0:02:37]} Qf7 {[%emt 0:00:24]} 41. Qd8+ {[%emt 0:31:05]} Be7 {[%emt 0:30:29]} 42. Qxb6 {[%emt 0:00:10]} Qg8 {[%emt 0:00:33]} 43. Bxd5 {[%emt 0:00:33]} 1-0

[Event "POR-ch Amateur 2018"]
[Site "Braga"]
[Date "2018.09.07"]
[Round "2"]
[White "Fernandes, Rui Filipe Santos"]
[Black "De Souza, Paulo H  Pinheiro"]
[Result "1-0"]
[ECO "C25"]
[WhiteElo "1345"]
[BlackElo "1619"]
[PlyCount "59"]
[EventDate "2018.09.02"]
[EventType "tourn"]
[EventCountry "POR"]
[TimeControl "40/5400+30:1800+30"]
[WhiteClock "0:25:42"]
[BlackClock "0:25:02"]

1. e4 {[%emt 0:00:00]} e5 {[%emt 0:00:00]} 2. Nc3 {[%emt 0:00:00]} Bc5 {[%emt 0:01:21]} 3. Bc4 {[%emt 0:02:12]} Nf6 {[%emt 0:02:06]} 4. Nf3 {[%emt 0:03:41]} d6 {[%emt 0:04:31]} 5. h3 {[%emt 0:03:52]} c6 {[%emt 0:03:01]} 6. O-O {[%emt 0:02:42]} b5 {[%emt 0:01:44]} 7. Bd3 {[%emt 0:03:36]} O-O {[%emt 0:05:01]} 8. a3 {[%emt 0:02:16]} a5 {[%emt 0:02:36]} 9. Ne2 {[%emt 0:01:49]} Ba6 {[%emt 0:03:47]} 10. c3 {[%emt 0:04:31]} Re8 {[%emt 0:08:17]} 11. Ng3 {[%emt 0:01:41]} d5 {[%emt 0:04:49]} 12. b4 {[%emt 0:00:56]} axb4 {[%emt 0:04:57]} 13. axb4 {[%emt 0:00:14]} Bb6 {[%emt 0:00:48]} 14. Bb2 {[%emt 0:09:26]} c5 {[%emt 0:05:23]} 15. bxc5 {[%emt 0:10:53]} Bxc5 {[%emt 0:00:32]} 16. Re1 Qb6 {[%emt 0:03:48]} 17. Re2 {[%emt 0:12:36]} b4 {[%emt 0:05:40]} 18. Bxa6 {[%emt 0:03:06]} Rxa6 {[%emt 0:00:15]} 19. cxb4 {[%emt 0:01:26]} Qxb4 {[%emt 0:07:48]} 20. Rxa6 {[%emt 0:01:28]} Nxa6 {[%emt 0:00:23]} 21. Bxe5 {[%emt 0:00:04]} Nxe4 {[%emt 0:01:52]} 22. Nxe4 {[%emt 0:00:54]} dxe4 {[%emt 0:00:12]} 23. Bc3 {[%emt 0:01:33]} Qb5 {[%emt 0:03:22]} 24. Nd4 {[%emt 0:03:21]} Qd7 {[%emt 0:00:53]} 25. Qa1 {[%emt 0:00:54]} Nb4 {[%emt 0:01:18]} 26. Nb3 {[%emt 0:03:56]} Nc2 {[%emt 0:02:54]} 27. Nxc5 {[%emt 0:01:21]} Nb4 28. Nb3 Nd3 29. Nc5 Nxc5 30. Bxg7 1-0

[Event "POR-ch Amateur 2018"]
[Site "Braga"]
[Date "2018.09.07"]
[Round "2"]
[White "Fernandes, Tiago Joao Carneiro"]
[Black "Areal, Maria Beatriz Moura"]
[Result "1-0"]
[ECO "B10"]
[WhiteElo "1232"]
[BlackElo "1051"]
[PlyCount "41"]
[EventDate "2018.09.02"]
[EventType "tourn"]
[EventCountry "POR"]
[TimeControl "40/5400+30:1800+30"]

1. e4 c6 2. Nf3 d5 3. Nc3 dxe4 4. Nxe4 Bf5 5. Ng3 Bc8 6. Bc4 Nd7 7. O-O Ngf6 8. Re1 e6 9. Ng5 Be7 10. Qf3 Nb6 11. Bb3 h6 12. N5e4 Nxe4 13. Rxe4 O-O 14. d3 Nd7 15. Nh5 Nc5 16. Rg4 Nxb3 17. Rxg7+ Kh8 18. axb3 f5 19. Bxh6 Re8 20. Nf4 Bf6 21. Ng6# 1-0

[Event "POR-ch Amateur 2018"]
[Site "Braga"]
[Date "2018.09.07"]
[Round "2"]
[White "Duarte, Francisco"]
[Black "Pontes, Tiago Jose Freixo"]
[Result "1-0"]
[ECO "D31"]
[WhiteElo "1205"]
[BlackElo "1040"]
[PlyCount "34"]
[EventDate "2018.09.02"]
[EventType "tourn"]
[EventCountry "POR"]
[TimeControl "40/5400+30:1800+30"]

1. d4 d5 2. c4 e6 3. Nc3 c6 4. e4 Bb4 5. e5 b5 6. cxd5 cxd5 7. Bxb5+ Bd7 8. Qa4 Be7 9. Nf3 Nh6 10. Bxh6 gxh6 11. O-O a6 12. Bxd7+ Qxd7 13. Qc2 Qc7 14. Qd2 Bb4 15. Rac1 Nd7 16. Qxh6 Rc8 17. Nxd5 exd5 1-0